[Event "4th Baskent University Open 2019"]
[Site "Ankara"]
[Date "2019.06.20"]
[Round "6"]
[White "Maghalashvili, Davit"]
[Black "Aydincelebi, Kagan"]
[Result "1-0"]
[ECO "A07"]
[WhiteElo "2500"]
[BlackElo "2258"]
[Annotator "ChessBase"]
[PlyCount "63"]
[EventDate "2019.06.18"]
[EventType "swiss"]
[EventCountry "TUR"]
[SourceTitle "playchess.com"]
[Source "ChessBase"]
[SourceQuality "1"]
[TimeControl "5400+30"]

1. Nf3 {[%emt 0:00:30]} d5 {[%emt 0:00:30]} 2. g3 {[%emt 0:00:30]} Nf6 {[%emt 0:00:00]} 3. Bg2 {[%emt 0:00:00]} c6 {[%emt 0:00:00]} 4. O-O {[%emt 0:00:00]} Bg4 {[%emt 0:00:00]} 5. d3 {[%emt 0:00:30]} Nbd7 {[%emt 0:00:00]} 6. Nbd2 {[%emt 0:00:00]} e5 {[%emt 0:00:00]} 7. h3 {[%emt 0:01:00]} Bh5 {[%emt 0:00:00]} 8. e4 {[%emt 0:00:30]} dxe4 {[%emt 0:00:30]} 9. dxe4 {[%emt 0:00:00]} Bc5 {[%emt 0:00:00]} 10. Qe1 {[%emt 0:00:00]} O-O {[%emt 0:00:00]} 11. Nc4 {[%emt 0:00:30]} Qc7 {[%emt 0:03:30]} 12. b4 {[%emt 0:02:30]} Bxf3 {[%emt 0:06:30]} 13. Bxf3 {[%emt 0:03:30]} Be7 {[%emt 0:00:00]} 14. a4 {[%emt 0:02:30]} b5 {[%emt 0:17:00]} 15. axb5 {[%emt 0:22:30]} cxb5 {[%emt 0:01:30]} 16. Ne3 {[%emt 0:00:30]} Nb6 {[%emt 0:00:30]} 17. Be2 {[%emt 0:04:30]} Nxe4 {[%emt 0:12:30]} 18. Bf3 {[%emt 0:07:30]} Ng5 {[%emt 0:00:30]} 19. Bg2 {[%emt 0:10:30]} Rac8 {[%emt 0:10:30]} 20. Ra5 {[%emt 0:04:30]} e4 {[%emt 0:22:30]} 21. Nf5 {[%emt 0:12:30]} Bf6 {[%emt 0:00:30]} 22. Bxg5 {[%emt 0:00:30]} Bxg5 {[%emt 0:00:30]} 23. Qxe4 {[%emt 0:00:30]} Qxc2 {[%emt 0:03:30]} 24. Qg4 {[%emt 0:02:30]} Bf6 {[%emt 0:00:30]} 25. Rxa7 {[%emt 0:08:20]} Qd2 {[%emt 0:04:59]} 26. Rb7 {[%emt 0:03:08]} Rc4 {[%emt 0:01:41]} 27. Rd1 {[%emt 0:00:45]} Rc1 {[%emt 0:03:34]} 28. Rxc1 {[%emt 0:00:44]} Qxc1+ {[%emt 0:00:02]} 29. Kh2 {[%emt 0:00:00]} Na4 {[%emt 0:02:12]} 30. Nd6 {[%emt 0:04:50]} Qe1 {[%emt 0:01:43]} 31. Rxf7 {[%emt 0:03:10]} Nb6 {[%emt 0:00:38]} 32. Rb7 {[%emt 0:03:05]} 1-0

[Event "4th Baskent University Open 2019"]
[Site "Ankara"]
[Date "2019.06.20"]
[Round "6"]
[White "Pacher, Milan"]
[Black "Akman, Ozgur"]
[Result "1-0"]
[ECO "E11"]
[WhiteElo "2434"]
[BlackElo "1930"]
[Annotator "ChessBase"]
[PlyCount "61"]
[EventDate "2019.06.18"]
[EventType "swiss"]
[EventCountry "TUR"]
[SourceTitle "playchess.com"]
[Source "ChessBase"]
[SourceQuality "1"]
[TimeControl "5400+30"]

1. d4 {[%emt 0:02:30]} Nf6 {[%emt 0:00:30]} 2. c4 {[%emt 0:00:00]} e6 {[%emt 0:00:30]} 3. Nf3 {[%emt 0:00:00]} Bb4+ {[%emt 0:00:30]} 4. Bd2 {[%emt 0:00:00]} Qe7 {[%emt 0:00:30]} 5. g3 {[%emt 0:00:00]} O-O {[%emt 0:00:30]} 6. Bg2 {[%emt 0:00:30]} Bxd2+ {[%emt 0:00:30]} 7. Nbxd2 {[%emt 0:00:30]} d6 {[%emt 0:00:30]} 8. O-O {[%emt 0:00:00]} Nc6 {[%emt 0:00:00]} 9. e4 {[%emt 0:00:00]} e5 {[%emt 0:00:00]} 10. d5 {[%emt 0:00:30]} Nb8 {[%emt 0:00:30]} 11. Ne1 {[%emt 0:00:00]} a5 {[%emt 0:03:30]} 12. Nd3 {[%emt 0:00:00]} Na6 {[%emt 0:15:30]} 13. f4 {[%emt 0:01:30]} Nd7 {[%emt 0:06:30]} 14. Kh1 {[%emt 0:02:30]} Nac5 {[%emt 0:03:30]} 15. Qc2 {[%emt 0:01:30]} Nxd3 {[%emt 0:03:30]} 16. Qxd3 {[%emt 0:00:30]} Nc5 {[%emt 0:00:00]} 17. Qe3 {[%emt 0:00:00]} f5 {[%emt 0:13:00]} 18. exf5 {[%emt 0:07:00]} Bxf5 {[%emt 0:02:30]} 19. Nb3 {[%emt 0:00:30]} Nd3 {[%emt 0:07:30]} 20. Nd4 {[%emt 0:01:30]} Nc5 {[%emt 0:16:30]} 21. fxe5 {[%emt 0:00:30]} Bd3 {[%emt 0:00:30]} 22. Rxf8+ {[%emt 0:06:30]} Rxf8 {[%emt 0:00:30]} 23. Nb3 {[%emt 0:00:30]} Bxc4 {[%emt 0:10:20]} 24. Nxc5 {[%emt 0:00:30]} dxc5 {[%emt 0:00:04]} 25. Rc1 {[%emt 0:00:30]} Ba6 {[%emt 0:01:48]} 26. Rxc5 {[%emt 0:00:30]} b6 {[%emt 0:00:08]} 27. Rc1 {[%emt 0:00:30]} Re8 {[%emt 0:05:32]} 28. d6 {[%emt 0:02:30]} cxd6 {[%emt 0:01:02]} 29. Qxb6 {[%emt 0:00:30]} Be2 {[%emt 0:04:19]} 30. exd6 {[%emt 0:00:30]} Qg5 {[%emt 0:00:11]} 31. Qc5 {[%emt 0:03:30]} 1-0

[Event "4th Baskent University Open 2019"]
[Site "Ankara"]
[Date "2019.06.20"]
[Round "6"]
[White "Bagaturov, Giorgi"]
[Black "Nagy, Gabor"]
[Result "1/2-1/2"]
[ECO "D27"]
[WhiteElo "2422"]
[BlackElo "2471"]
[Annotator "ChessBase"]
[PlyCount "105"]
[EventDate "2019.06.18"]
[EventType "swiss"]
[EventCountry "TUR"]
[SourceTitle "playchess.com"]
[Source "ChessBase"]
[SourceQuality "1"]
[TimeControl "5400+30"]

1. d4 {[%emt 0:00:30]} Nf6 {[%emt 0:00:30]} 2. Nf3 {[%emt 0:00:30]} d5 {[%emt 0:00:30]} 3. c4 {[%emt 0:00:30]} e6 {[%emt 0:00:00]} 4. Nc3 {[%emt 0:00:30]} a6 {[%emt 0:00:00]} 5. e3 {[%emt 0:05:30]} dxc4 {[%emt 0:00:30]} 6. Bxc4 {[%emt 0:00:30]} b5 {[%emt 0:00:30]} 7. Bd3 {[%emt 0:01:30]} Bb7 {[%emt 0:00:30]} 8. O-O {[%emt 0:10:30]} c5 {[%emt 0:00:30]} 9. dxc5 {[%emt 0:02:30]} Bxc5 {[%emt 0:00:30]} 10. e4 {[%emt 0:04:30]} Nbd7 {[%emt 0:00:30]} 11. Qe2 {[%emt 0:00:00]} O-O {[%emt 0:02:30]} 12. Bf4 {[%emt 0:04:00]} Nh5 {[%emt 0:05:30]} 13. Bd2 {[%emt 0:06:30]} b4 {[%emt 0:17:30]} 14. Na4 {[%emt 0:05:30]} Be7 {[%emt 0:00:00]} 15. Rac1 {[%emt 0:05:30]} Qa5 {[%emt 0:08:00]} 16. b3 {[%emt 0:01:30]} Rad8 {[%emt 0:00:00]} 17. Be3 {[%emt 0:01:30]} Nhf6 {[%emt 0:01:00]} 18. Nd2 {[%emt 0:02:30]} Qe5 {[%emt 0:03:30]} 19. Nc4 {[%emt 0:01:30]} Qb8 {[%emt 0:00:00]} 20. f3 {[%emt 0:12:30]} Nh5 {[%emt 0:04:00]} 21. Na5 {[%emt 0:07:30]} Bd6 {[%emt 0:01:30]} 22. g3 {[%emt 0:00:30]} Ba8 {[%emt 0:10:30]} 23. f4 {[%emt 0:01:30]} Nhf6 {[%emt 0:02:30]} 24. Nc6 {[%emt 0:00:30]} Bxc6 {[%emt 0:00:30]} 25. Rxc6 {[%emt 0:00:30]} e5 {[%emt 0:00:30]} 26. f5 {[%emt 0:03:30]} Rc8 {[%emt 0:00:00]} 27. Rfc1 {[%emt 0:01:37]} Be7 {[%emt 0:00:00]} 28. Qc2 {[%emt 0:02:57]} Rxc6 {[%emt 0:01:30]} 29. Qxc6 {[%emt 0:00:05]} Rd8 {[%emt 0:00:30]} 30. h3 {[%emt 0:02:50]} g6 {[%emt 0:01:30]} 31. g4 {[%emt 0:01:04]} gxf5 {[%emt 0:00:30]} 32. gxf5 {[%emt 0:00:11]} Kh8 {[%emt 0:00:00]} 33. Bxa6 {[%emt 0:02:34]} Rg8+ {[%emt 0:01:00]} 34. Kh2 {[%emt 0:00:08]} Qd8 {[%emt 0:00:30]} 35. Be2 {[%emt 0:01:57]} Nh5 {[%emt 0:03:30]} 36. Qc7 {[%emt 0:09:07]} Qa8 {[%emt 0:03:30]} 37. Bf3 {[%emt 0:00:45]} Rg3 {[%emt 0:02:30]} 38. Qxd7 {[%emt 0:01:03]} Qg8 {[%emt 0:00:00]} 39. Rc8 {[%emt 0:01:36]} Bf8 {[%emt 0:00:00]} 40. Bg4 {[%emt 0:01:01]} Rxe3 {[%emt 0:01:30]} 41. Qe8 {[%emt 0:00:32]} Nf6 {[%emt 0:01:30]} 42. Qxf8 {[%emt 0:00:35]} Qxf8 {[%emt 0:01:30]} 43. Rxf8+ {[%emt 0:00:33]} Kg7 {[%emt 0:00:30]} 44. Rb8 {[%emt 0:00:08]} h5 {[%emt 0:00:00]} 45. Bd1 {[%emt 0:00:15]} Rd3 {[%emt 0:00:00]} 46. Bxh5 {[%emt 0:01:27]} Nxh5 {[%emt 0:00:00]} 47. Rxb4 {[%emt 0:00:07]} Rd2+ {[%emt 0:01:00]} 48. Kg1 {[%emt 0:00:00]} Nf4 {[%emt 0:00:00]} 49. Nc3 {[%emt 0:00:09]} Rc2 {[%emt 0:01:00]} 50. Nd5 {[%emt 0:00:23]} Nxh3+ {[%emt 0:00:00]} 51. Kf1 {[%emt 0:00:38]} Rxa2 {[%emt 0:00:00]} 52. Rb8 {[%emt 0:00:45]} Ng5 {[%emt 0:00:30]} 53. f6+ {[%emt 0:01:13]} 1/2-1/2

[Event "4th Baskent University Open 2019"]
[Site "Ankara"]
[Date "2019.06.20"]
[Round "6"]
[White "Nikcevic, Nebojsa"]
[Black "Mohannad, Farhan"]
[Result "1/2-1/2"]
[ECO "E91"]
[WhiteElo "2420"]
[BlackElo "2193"]
[Annotator "ChessBase"]
[PlyCount "87"]
[EventDate "2019.06.18"]
[EventType "swiss"]
[EventCountry "TUR"]
[SourceTitle "playchess.com"]
[Source "ChessBase"]
[SourceQuality "1"]
[TimeControl "5400+30"]

1. Nf3 {[%emt 0:01:30]} Nf6 {[%emt 0:00:30]} 2. c4 {[%emt 0:00:00]} g6 {[%emt 0:00:30]} 3. Nc3 {[%emt 0:00:00]} Bg7 {[%emt 0:00:00]} 4. e4 {[%emt 0:00:30]} d6 {[%emt 0:00:00]} 5. d4 {[%emt 0:00:30]} O-O {[%emt 0:00:00]} 6. Be2 {[%emt 0:09:30]} c5 {[%emt 0:00:00]} 7. O-O {[%emt 0:00:30]} Nc6 {[%emt 0:00:00]} 8. d5 {[%emt 0:00:30]} Na5 {[%emt 0:00:00]} 9. Bd2 {[%emt 0:00:30]} e5 {[%emt 0:00:30]} 10. Ne1 {[%emt 0:02:30]} Ne8 {[%emt 0:02:30]} 11. Rc1 {[%emt 0:06:30]} Bd7 {[%emt 0:00:30]} 12. b3 {[%emt 0:00:30]} a6 {[%emt 0:01:30]} 13. Nc2 {[%emt 0:10:30]} Rb8 {[%emt 0:08:30]} 14. Qe1 {[%emt 0:04:30]} b6 {[%emt 0:02:30]} 15. Rb1 {[%emt 0:04:30]} f5 {[%emt 0:03:30]} 16. exf5 {[%emt 0:00:30]} Bxf5 {[%emt 0:00:30]} 17. Rc1 {[%emt 0:00:30]} Nf6 {[%emt 0:03:30]} 18. Ne3 {[%emt 0:00:30]} Bd7 {[%emt 0:05:30]} 19. Bd3 {[%emt 0:00:30]} Nb7 {[%emt 0:00:30]} 20. Qe2 {[%emt 0:03:30]} Nh5 {[%emt 0:01:30]} 21. g3 {[%emt 0:00:30]} Nf4 {[%emt 0:07:30]} 22. gxf4 {[%emt 0:05:30]} exf4 {[%emt 0:00:30]} 23. Ne4 {[%emt 0:06:30]} fxe3 {[%emt 0:01:30]} 24. Qxe3 {[%emt 0:02:30]} Qh4 {[%emt 0:07:30]} 25. Qg3 {[%emt 0:00:30]} Qh5 {[%emt 0:00:30]} 26. f4 {[%emt 0:04:30]} Rbe8 {[%emt 0:05:30]} 27. Ng5 {[%emt 0:05:30]} Nd8 {[%emt 0:04:30]} 28. Rce1 {[%emt 0:01:30]} Rxe1 {[%emt 0:02:30]} 29. Rxe1 {[%emt 0:00:00]} Re8 {[%emt 0:00:30]} 30. Be4 {[%emt 0:06:00]} Qg4 {[%emt 0:02:30]} 31. Kg2 {[%emt 0:01:30]} Qxg3+ {[%emt 0:01:30]} 32. hxg3 {[%emt 0:00:30]} Bf6 {[%emt 0:01:30]} 33. Bd3 {[%emt 0:01:30]} Rxe1 {[%emt 0:00:30]} 34. Bxe1 {[%emt 0:00:30]} Bd4 {[%emt 0:08:30]} 35. Ne4 {[%emt 0:00:30]} Nf7 {[%emt 0:00:30]} 36. b4 {[%emt 0:01:30]} Bf5 {[%emt 0:03:30]} 37. Kf3 {[%emt 0:06:21]} h5 {[%emt 0:01:30]} 38. bxc5 {[%emt 0:02:04]} bxc5 {[%emt 0:00:30]} 39. Ba5 {[%emt 0:01:00]} Kf8 {[%emt 0:00:30]} 40. Bc2 {[%emt 0:03:08]} Bg4+ {[%emt 0:00:30]} 41. Kg2 {[%emt 0:00:37]} Bf5 {[%emt 0:00:00]} 42. Kf3 {[%emt 0:00:38]} Bg4+ {[%emt 0:00:00]} 43. Kg2 {[%emt 0:00:53]} Bf5 {[%emt 0:00:30]} 44. Kf3 {[%emt 0:00:30]} 1/2-1/2

[Event "4th Baskent University Open 2019"]
[Site "Ankara"]
[Date "2019.06.20"]
[Round "6"]
[White "Odeev, Handszar"]
[Black "Bernadskiy, Vitaliy"]
[Result "1/2-1/2"]
[ECO "A13"]
[WhiteElo "2386"]
[BlackElo "2578"]
[Annotator "ChessBase"]
[PlyCount "126"]
[EventDate "2019.06.18"]
[EventType "swiss"]
[EventCountry "TUR"]
[SourceTitle "playchess.com"]
[Source "ChessBase"]
[SourceQuality "1"]
[TimeControl "5400+30"]

1. c4 {[%emt 0:00:30]} e6 {[%emt 0:01:30]} 2. g3 {[%emt 0:02:30]} d5 {[%emt 0:00:30]} 3. Bg2 {[%emt 0:00:30]} g6 {[%emt 0:02:30]} 4. Nf3 {[%emt 0:04:30]} Bg7 {[%emt 0:00:30]} 5. O-O {[%emt 0:00:30]} Ne7 {[%emt 0:00:30]} 6. d4 {[%emt 0:04:30]} O-O {[%emt 0:00:30]} 7. Qc2 {[%emt 0:00:30]} Nbc6 {[%emt 0:00:00]} 8. Rd1 {[%emt 0:01:30]} b6 {[%emt 0:00:00]} 9. Bf4 {[%emt 0:11:30]} Bb7 {[%emt 0:01:30]} 10. cxd5 {[%emt 0:23:30]} Nb4 {[%emt 0:09:30]} 11. Qc1 {[%emt 0:07:30]} Nbxd5 {[%emt 0:00:30]} 12. Bh6 {[%emt 0:00:30]} Nf6 {[%emt 0:01:30]} 13. Nc3 {[%emt 0:00:30]} Rc8 {[%emt 0:00:00]} 14. Bxg7 {[%emt 0:01:30]} Kxg7 {[%emt 0:00:00]} 15. Ne5 {[%emt 0:03:30]} Bxg2 {[%emt 0:02:30]} 16. Kxg2 {[%emt 0:00:30]} Qd6 {[%emt 0:00:30]} 17. e4 {[%emt 0:03:30]} c5 {[%emt 0:02:30]} 18. Qe3 {[%emt 0:02:30]} Rfd8 {[%emt 0:02:30]} 19. Nf3 {[%emt 0:06:30]} cxd4 {[%emt 0:02:30]} 20. Rxd4 {[%emt 0:07:55]} Qb8 {[%emt 0:02:30]} 21. Rad1 {[%emt 0:00:36]} Nc6 {[%emt 0:00:30]} 22. Rxd8 {[%emt 0:00:56]} Rxd8 {[%emt 0:00:30]} 23. Rxd8 {[%emt 0:01:42]} Qxd8 {[%emt 0:00:00]} 24. Qd2 {[%emt 0:00:00]} Qe7 {[%emt 0:02:00]} 25. Nd4 {[%emt 0:02:02]} Qd7 {[%emt 0:04:30]} 26. Nb3 {[%emt 0:00:10]} Ne5 {[%emt 0:01:30]} 27. Qxd7 {[%emt 0:02:21]} Nfxd7 {[%emt 0:00:00]} 28. Nd4 {[%emt 0:01:29]} g5 {[%emt 0:01:00]} 29. f3 {[%emt 0:01:03]} Kf6 {[%emt 0:00:30]} 30. Kf1 {[%emt 0:00:53]} a6 {[%emt 0:02:30]} 31. Ke2 {[%emt 0:01:03]} Ke7 {[%emt 0:04:30]} 32. Nd1 {[%emt 0:04:42]} Kd6 {[%emt 0:00:30]} 33. Kd2 {[%emt 0:00:25]} b5 {[%emt 0:00:30]} 34. Kc3 {[%emt 0:00:13]} Nb6 {[%emt 0:05:30]} 35. b3 {[%emt 0:00:34]} Kc5 {[%emt 0:01:30]} 36. a3 {[%emt 0:00:24]} Nbd7 {[%emt 0:01:30]} 37. Nf2 {[%emt 0:00:11]} a5 {[%emt 0:00:30]} 38. b4+ {[%emt 0:03:32]} Kb6 {[%emt 0:00:30]} 39. f4 {[%emt 0:00:12]} gxf4 {[%emt 0:00:30]} 40. gxf4 {[%emt 0:00:30]} Ng6 {[%emt 0:00:00]} 41. f5 {[%emt 0:00:00]} exf5 {[%emt 0:01:00]} 42. exf5 {[%emt 0:00:17]} Ne7 {[%emt 0:00:30]} 43. Ne4 {[%emt 0:00:30]} Nd5+ {[%emt 0:00:30]} 44. Kb3 {[%emt 0:00:30]} a4+ {[%emt 0:00:30]} 45. Kb2 {[%emt 0:00:30]} Ne5 {[%emt 0:00:30]} 46. Nd6 {[%emt 0:03:07]} Nc4+ {[%emt 0:10:30]} 47. Nxc4+ {[%emt 0:00:30]} bxc4 {[%emt 0:00:00]} 48. Kc2 {[%emt 0:00:52]} Kc7 {[%emt 0:00:00]} 49. Nb5+ {[%emt 0:00:16]} Kc6 {[%emt 0:01:30]} 50. Nc3 {[%emt 0:00:21]} Nb6 {[%emt 0:00:30]} 51. Ne4 {[%emt 0:00:41]} Kd5 {[%emt 0:03:30]} 52. Ng5 {[%emt 0:00:32]} f6 {[%emt 0:00:30]} 53. Nxh7 {[%emt 0:00:15]} Ke5 {[%emt 0:00:30]} 54. h4 {[%emt 0:00:26]} Kxf5 {[%emt 0:03:30]} 55. h5 {[%emt 0:00:02]} Nd5 {[%emt 0:03:30]} 56. b5 {[%emt 0:00:30]} Ke5 {[%emt 0:02:30]} 57. h6 {[%emt 0:00:43]} Ne3+ {[%emt 0:07:30]} 58. Kc3 {[%emt 0:00:52]} Ng4 {[%emt 0:00:00]} 59. Kxc4 {[%emt 0:00:27]} Nxh6 {[%emt 0:00:00]} 60. b6 {[%emt 0:00:31]} Nf7 {[%emt 0:02:30]} 61. Kb4 {[%emt 0:00:43]} Kd6 {[%emt 0:00:30]} 62. Kxa4 {[%emt 0:00:27]} Kc6 {[%emt 0:01:20]} 63. Ka5 {[%emt 0:00:16]} Ne5 {[%emt 0:00:20]} 1/2-1/2

[Event "4th Baskent University Open 2019"]
[Site "Ankara"]
[Date "2019.06.20"]
[Round "6"]
[White "Saraci, Nderim"]
[Black "Yilmaz, Goktan"]
[Result "1/2-1/2"]
[ECO "D34"]
[WhiteElo "2377"]
[BlackElo "2155"]
[Annotator "ChessBase"]
[PlyCount "68"]
[EventDate "2019.06.18"]
[EventType "swiss"]
[EventCountry "TUR"]
[SourceTitle "playchess.com"]
[Source "ChessBase"]
[SourceQuality "1"]
[TimeControl "5400+30"]

1. Nf3 {[%emt 0:01:30]} Nf6 {[%emt 0:00:30]} 2. c4 {[%emt 0:00:30]} e6 {[%emt 0:00:00]} 3. g3 {[%emt 0:00:30]} d5 {[%emt 0:00:00]} 4. Bg2 {[%emt 0:00:00]} c5 {[%emt 0:01:30]} 5. cxd5 {[%emt 0:00:00]} exd5 {[%emt 0:00:30]} 6. d4 {[%emt 0:00:30]} Nc6 {[%emt 0:00:30]} 7. O-O {[%emt 0:00:00]} Be7 {[%emt 0:01:30]} 8. Nc3 {[%emt 0:04:00]} O-O {[%emt 0:01:30]} 9. Bf4 {[%emt 0:03:30]} Bg4 {[%emt 0:11:30]} 10. dxc5 {[%emt 0:05:30]} Bxc5 {[%emt 0:02:30]} 11. Ne5 {[%emt 0:03:30]} Be6 {[%emt 0:13:30]} 12. Rc1 {[%emt 0:04:30]} Bd6 {[%emt 0:09:30]} 13. Nd3 {[%emt 0:07:30]} h6 {[%emt 0:00:00]} 14. Nb5 {[%emt 0:06:30]} Bxf4 {[%emt 0:08:00]} 15. Nxf4 {[%emt 0:00:30]} Qb6 {[%emt 0:01:30]} 16. Nxe6 {[%emt 0:14:30]} fxe6 {[%emt 0:00:30]} 17. Nc3 {[%emt 0:03:30]} Qxb2 {[%emt 0:03:30]} 18. Bh3 {[%emt 0:05:30]} Rfe8 {[%emt 0:01:30]} 19. Na4 {[%emt 0:00:30]} Qe5 {[%emt 0:03:30]} 20. e3 {[%emt 0:08:30]} Na5 {[%emt 0:03:30]} 21. Nc5 {[%emt 0:09:30]} Nc4 {[%emt 0:01:30]} 22. Qd4 {[%emt 0:01:36]} Qxd4 {[%emt 0:14:30]} 23. exd4 {[%emt 0:00:02]} e5 {[%emt 0:02:44]} 24. dxe5 {[%emt 0:01:02]} Rxe5 {[%emt 0:00:11]} 25. Nxb7 {[%emt 0:01:32]} Re2 {[%emt 0:02:10]} 26. Rfd1 {[%emt 0:03:10]} Rae8 {[%emt 0:03:31]} 27. Bf1 {[%emt 0:00:44]} Rb2 {[%emt 0:01:04]} 28. Nc5 {[%emt 0:04:13]} Ne5 {[%emt 0:00:51]} 29. Bg2 {[%emt 0:01:27]} Rxa2 {[%emt 0:01:09]} 30. Rxd5 {[%emt 0:01:26]} Neg4 {[%emt 0:01:02]} 31. Rf5 {[%emt 0:00:24]} Ree2 {[%emt 0:01:37]} 32. Bf1 {[%emt 0:02:09]} Rac2 {[%emt 0:03:34]} 33. Rxc2 {[%emt 0:01:29]} Rxc2 {[%emt 0:00:02]} 34. Nd3 {[%emt 0:00:31]} Nd7 {[%emt 0:00:19]} 1/2-1/2

[Event "4th Baskent University Open 2019"]
[Site "Ankara"]
[Date "2019.06.20"]
[Round "6"]
[White "Arat, Ufuk Sezen"]
[Black "Guven, Oguz Kagan"]
[Result "1-0"]
[ECO "E04"]
[WhiteElo "2368"]
[BlackElo "2095"]
[Annotator "ChessBase"]
[PlyCount "87"]
[EventDate "2019.06.18"]
[EventType "swiss"]
[EventCountry "TUR"]
[SourceTitle "playchess.com"]
[Source "ChessBase"]
[SourceQuality "1"]
[TimeControl "5400+30"]

1. d4 {[%emt 0:11:30]} Nf6 {[%emt 0:00:30]} 2. c4 {[%emt 0:00:00]} e6 {[%emt 0:00:00]} 3. Nc3 {[%emt 0:00:00]} d5 {[%emt 0:00:00]} 4. Nf3 {[%emt 0:02:30]} a6 {[%emt 0:00:00]} 5. g3 {[%emt 0:06:30]} dxc4 {[%emt 0:00:00]} 6. a4 {[%emt 0:00:30]} Nc6 {[%emt 0:00:30]} 7. Bg2 {[%emt 0:01:30]} Rb8 {[%emt 0:00:00]} 8. O-O {[%emt 0:04:30]} Bb4 {[%emt 0:00:00]} 9. Bg5 {[%emt 0:06:30]} h6 {[%emt 0:01:30]} 10. Bxf6 {[%emt 0:10:30]} Qxf6 {[%emt 0:00:00]} 11. e3 {[%emt 0:00:30]} O-O {[%emt 0:00:00]} 12. Nd2 {[%emt 0:07:30]} Na5 {[%emt 0:00:30]} 13. Nde4 {[%emt 0:04:30]} Qe7 {[%emt 0:01:30]} 14. Qh5 {[%emt 0:08:30]} b6 {[%emt 0:04:30]} 15. g4 {[%emt 0:06:30]} Bb7 {[%emt 0:02:30]} 16. f4 {[%emt 0:08:30]} f5 {[%emt 0:02:30]} 17. Nd2 {[%emt 0:00:29]} Bxg2 {[%emt 0:00:30]} 18. Kxg2 {[%emt 0:00:02]} fxg4 {[%emt 0:03:30]} 19. Qxg4 {[%emt 0:00:11]} Qf6 {[%emt 0:10:30]} 20. Nde4 {[%emt 0:05:15]} Qf5 {[%emt 0:01:30]} 21. Qf3 {[%emt 0:00:02]} Bxc3 {[%emt 0:04:30]} 22. Nxc3 {[%emt 0:00:25]} Rbd8 {[%emt 0:02:30]} 23. Rad1 {[%emt 0:02:22]} c5 {[%emt 0:02:30]} 24. d5 {[%emt 0:00:17]} e5 {[%emt 0:01:30]} 25. e4 {[%emt 0:02:01]} Qxf4 {[%emt 0:01:30]} 26. Qxf4 {[%emt 0:00:02]} exf4 {[%emt 0:00:30]} 27. e5 {[%emt 0:00:20]} g5 {[%emt 0:00:30]} 28. Rfe1 {[%emt 0:02:49]} Rfe8 {[%emt 0:05:30]} 29. Ne4 {[%emt 0:02:30]} Kg7 {[%emt 0:01:30]} 30. Nd6 {[%emt 0:00:51]} Rf8 {[%emt 0:02:30]} 31. Re4 {[%emt 0:00:12]} Kg6 {[%emt 0:00:30]} 32. Kf3 {[%emt 0:00:55]} h5 {[%emt 0:01:30]} 33. h3 {[%emt 0:00:34]} Rd7 {[%emt 0:08:30]} 34. Nxc4 {[%emt 0:02:15]} Nxc4 {[%emt 0:00:30]} 35. Rxc4 {[%emt 0:00:01]} Kf5 {[%emt 0:00:30]} 36. e6 {[%emt 0:00:44]} Rd6 {[%emt 0:02:30]} 37. a5 {[%emt 0:00:08]} g4+ {[%emt 0:00:30]} 38. Kg2 {[%emt 0:00:46]} Ke5 {[%emt 0:14:30]} 39. Re1+ {[%emt 0:00:20]} Kxd5 {[%emt 0:00:30]} 40. Rxf4 {[%emt 0:00:05]} gxh3+ {[%emt 0:00:30]} 41. Kxh3 {[%emt 0:00:40]} Re8 {[%emt 0:00:30]} 42. e7 {[%emt 0:00:47]} Re6 {[%emt 0:00:30]} 43. axb6 {[%emt 0:00:34]} Kd6 {[%emt 0:03:30]} 44. Rf2 {[%emt 0:00:17]} 1-0

[Event "4th Baskent University Open 2019"]
[Site "Ankara"]
[Date "2019.06.20"]
[Round "6"]
[White "Olcum, Ahmet"]
[Black "Ozdemir, Serhan Berat"]
[Result "1-0"]
[ECO "C00"]
[WhiteElo "2315"]
[BlackElo "1950"]
[Annotator "ChessBase"]
[PlyCount "115"]
[EventDate "2019.06.18"]
[EventType "swiss"]
[EventCountry "TUR"]
[SourceTitle "playchess.com"]
[Source "ChessBase"]
[SourceQuality "1"]
[TimeControl "5400+30"]

1. e4 {[%emt 0:05:30]} c5 {[%emt 0:00:30]} 2. d3 {[%emt 0:00:00]} e6 {[%emt 0:00:30]} 3. g3 {[%emt 0:00:00]} d5 {[%emt 0:00:30]} 4. Nd2 {[%emt 0:00:30]} Nc6 {[%emt 0:03:30]} 5. Bg2 {[%emt 0:00:00]} Be7 {[%emt 0:00:30]} 6. Ngf3 {[%emt 0:00:00]} Nf6 {[%emt 0:01:30]} 7. O-O {[%emt 0:00:00]} O-O {[%emt 0:01:30]} 8. Re1 {[%emt 0:01:00]} Qc7 {[%emt 0:02:30]} 9. e5 {[%emt 0:01:30]} Nd7 {[%emt 0:00:30]} 10. Qe2 {[%emt 0:00:00]} b6 {[%emt 0:01:30]} 11. Nf1 {[%emt 0:00:00]} a5 {[%emt 0:02:30]} 12. h4 {[%emt 0:00:30]} Ba6 {[%emt 0:00:30]} 13. c3 {[%emt 0:05:30]} d4 {[%emt 0:02:30]} 14. c4 {[%emt 0:03:30]} b5 {[%emt 0:00:30]} 15. b3 {[%emt 0:01:30]} a4 {[%emt 0:00:30]} 16. Bf4 {[%emt 0:10:30]} bxc4 {[%emt 0:00:00]} 17. bxc4 {[%emt 0:00:30]} Rab8 {[%emt 0:01:00]} 18. a3 {[%emt 0:08:30]} Rb3 {[%emt 0:08:30]} 19. h5 {[%emt 0:11:30]} Rfb8 {[%emt 0:04:30]} 20. N1d2 {[%emt 0:04:30]} Rb2 {[%emt 0:14:30]} 21. Qd1 {[%emt 0:00:30]} Qa5 {[%emt 0:06:30]} 22. Ne4 {[%emt 0:05:30]} Bb7 {[%emt 0:05:30]} 23. g4 {[%emt 0:04:30]} Nd8 {[%emt 0:02:30]} 24. g5 {[%emt 0:06:30]} Bxe4 {[%emt 0:00:30]} 25. Rxe4 {[%emt 0:00:30]} Nf8 {[%emt 0:05:30]} 26. Bd2 {[%emt 0:03:30]} Qa6 {[%emt 0:02:30]} 27. Re1 {[%emt 0:06:30]} R2b3 {[%emt 0:03:30]} 28. Bf1 {[%emt 0:02:20]} Rb2 {[%emt 0:11:08]} 29. Bc1 {[%emt 0:02:32]} R2b6 {[%emt 0:02:17]} 30. Nh2 {[%emt 0:00:57]} Rb1 {[%emt 0:00:09]} 31. Rxb1 {[%emt 0:00:33]} Rxb1 {[%emt 0:00:02]} 32. f4 {[%emt 0:01:55]} Qa5 {[%emt 0:01:27]} 33. Bd2 {[%emt 0:00:52]} Rxd1 {[%emt 0:00:45]} 34. Bxa5 {[%emt 0:00:08]} Rxe1 {[%emt 0:01:25]} 35. Bxe1 {[%emt 0:00:30]} Nd7 {[%emt 0:00:30]} 36. Ng4 {[%emt 0:00:30]} Nc6 {[%emt 0:00:30]} 37. Bg2 {[%emt 0:00:30]} Nb4 {[%emt 0:00:30]} 38. Nf2 {[%emt 0:00:30]} Nb6 {[%emt 0:00:30]} 39. Bd2 {[%emt 0:00:30]} Nc2 {[%emt 0:00:30]} 40. Bc1 {[%emt 0:00:30]} f6 {[%emt 0:00:30]} 41. g6 {[%emt 0:00:30]} hxg6 {[%emt 0:00:30]} 42. hxg6 {[%emt 0:00:30]} fxe5 {[%emt 0:00:30]} 43. fxe5 {[%emt 0:00:30]} Nd7 {[%emt 0:00:30]} 44. Ng4 {[%emt 0:00:30]} Bh4 {[%emt 0:00:30]} 45. Bc6 {[%emt 0:00:30]} Nb6 {[%emt 0:00:30]} 46. Kf1 {[%emt 0:10:50]} Na1 {[%emt 0:12:16]} 47. Ke2 {[%emt 0:01:20]} Nb3 {[%emt 0:00:03]} 48. Bf4 {[%emt 0:00:00]} Kf8 {[%emt 0:00:36]} 49. Nh2 {[%emt 0:00:00]} Na1 {[%emt 0:02:17]} 50. Nf3 {[%emt 0:00:06]} Be7 {[%emt 0:01:24]} 51. Kd1 {[%emt 0:00:09]} Nb3 {[%emt 0:00:16]} 52. Bb5 {[%emt 0:00:45]} Bd8 {[%emt 0:00:39]} 53. Kc2 {[%emt 0:01:28]} Na5 {[%emt 0:00:08]} 54. Bd2 {[%emt 0:00:37]} Nc8 {[%emt 0:00:18]} 55. Bxa4 {[%emt 0:00:48]} Ne7 {[%emt 0:00:04]} 56. Ng5 {[%emt 0:00:22]} Nb7 {[%emt 0:00:51]} 57. Nxe6+ {[%emt 0:00:34]} Kg8 {[%emt 0:00:00]} 58. Bg5 {[%emt 0:00:00]} 1-0